bitfinex/quotes_ETHUSD_20250925
["timestamp","ask_amount","ask_price","bid_price","bid_amount"]
[1758795547826,0.38836495,4041.4,4041.3,17.66355129]
[1758795548322,0.0002,4041.4,4041.3,17.66355129]
[1758795553268,0.0002,4041.4,4041.3,17.20765129]
[1758795553668,0.0002,4041.4,4041.3,17.64285129]
[1758795554087,0.0002,4041.4,4041.3,2.70765129]
[1758795554285,0.0002,4041.4,4041.3,3.14285129]
[1758795554593,0.0002,4041.4,4041.3,2.70765129]
[1758795555156,0.0002,4041.4,4041.3,3.14285129]
[1758795555457,0.0002,4041.4,4041.3,2.70765129]
[1758795556496,0.0002,4041.4,4041.3,2.47645129]
[1758795557100,0.0002,4041.4,4041.3,0.002]
[1758795557395,23.807258,4041.4,4041.3,0.002]
[1758795557560,17.387626,4041.4,4041.3,0.002]
[1758795557759,13.315689,4041.4,4041.3,0.002]
[1758795557959,10.678065,4041.4,4041.3,0.002]
[1758795558161,10.362065,4041.4,4041.3,0.002]
[1758795559599,9.425065,4041.4,4041.3,0.002]
[1758795559898,2.85665,4041.4,4041.3,0.002]
[1758795560263,3.24481924,4041.4,4041.3,0.002]
[1758795560995,0.38836924,4041.4,4041.3,0.002]
[1758795561206,2.52621924,4041.4,4041.3,0.002]
[1758795561371,2.91387824,4041.4,4041.3,0.002]
[1758795563189,0.38836924,4041.4,4041.3,0.002]
[1758795564705,0.38836924,4041.4,4041.3,0.002]
[1758795565090,3.48282124,4041.4,4041.3,0.002]
[1758795565525,3.17582124,4041.4,4041.3,0.002]
[1758795566004,2.787652,4041.4,4041.3,0.002]
[1758795566997,3.259252,4041.4,4041.3,0.002]
[1758795567197,0.001,4042.3,4041.3,1.6572]
[1758795567399,0.001,4042.3,4042.2,3.26590035]
[1758795567619,0.001,4042.3,4042.2,21.94590035]
[1758795567790,0.001,4042.3,4042.2,22.60630035]
[1758795568326,0.001,4042.3,4042.2,22.70554153]
[1758795568501,0.001,4042.3,4042.2,25.70554153]
[1758795568832,0.001,4042.3,4042.2,27.76754153]
[1758795569126,1e-08,4042.9,4042.8,2.47353319]
[1758795569494,1e-08,4042.9,4042.8,3.95066852]
[1758795569720,1e-08,4042.9,4042.8,21.42593319]
[1758795569937,1e-08,4042.9,4042.8,21.56893319]
[1758795570226,1e-08,4043.3,4043.2,2.47328848]
[1758795570439,2.325,4044.3,4043.8,2.4729215]
[1758795570616,0.7067,4044.6,4043.8,2.49765071]
[1758795570793,1.156,4044.4,4043.8,3.15805071]
[1758795571230,1.156,4044.4,4043.8,3.86475071]
[1758795571527,1.156,4044.4,4043.8,18.36475071]
[1758795571737,1.156,4044.4,4043.8,18.3400215]
[1758795571938,0.0192,4043.9,4043.8,18.3400215]
[1758795572236,0.0192,4043.9,4043.8,17.9048215]
[1758795572399,0.0192,4043.9,4043.8,18.3400215]
[1758795572597,0.0192,4043.9,4043.8,17.9048215]
[1758795574798,0.0192,4043.9,4043.8,3.4048215]
[1758795575320,0.0192,4043.9,4043.8,17.9048215]
[1758795576107,0.0192,4043.9,4043.8,17.1981215]
[1758795578329,0.0192,4043.9,4043.8,16.9729215]
[1758795579042,0.0192,4043.9,4043.8,2.4729215]
[1758795579551,0.0192,4043.9,4043.8,17.1981215]
[1758795582417,0.0192,4043.9,4043.8,2.6981215]
[1758795582808,0.0192,4043.9,4043.8,2.7001215]
[1758795583139,0.0192,4043.9,4043.8,17.2001215]
[1758795583551,0.0202,4043.9,4043.8,16.9749215]
[1758795583727,0.0202,4043.9,4043.8,17.2204215]
[1758795586122,0.0202,4043.9,4043.8,2.7204215]
[1758795586334,0.0202,4043.9,4043.8,2.4749215]
[1758795586524,0.0202,4043.9,4043.8,16.9749215]
[1758795586971,0.7233,4043.9,4043.8,16.9749215]
[1758795587185,0.263,4043.9,4043.8,16.9749215]
[1758795587468,0.0202,4043.9,4043.8,16.9749215]
[1758795588773,0.0202,4043.9,4043.8,14.502]
[1758795588937,0.7233,4043.9,4043.8,14.502]
[1758795589138,0.7233,4043.9,4043.8,0.002]
[1758795589832,2.7843,4043.9,4043.8,0.002]
[1758795590033,3.10151852,4043.9,4043.8,0.002]
[1758795590949,33.10151852,4043.9,4043.8,0.002]
[1758795591147,29.20697252,4043.9,4043.8,0.002]
[1758795592428,31.77913287,4043.9,4043.8,0.002]
[1758795592974,30.09355887,4043.9,4043.8,0.002]
[1758795593177,29.61279587,4043.9,4043.8,0.002]
[1758795594083,29.30265787,4043.9,4043.8,0.002]
[1758795594480,37.23258987,4043.9,4043.8,0.002]
[1758795594892,40.23258987,4043.9,4043.8,0.002]
[1758795595199,36.82625403,4043.9,4043.8,0.002]
[1758795595561,41.48933203,4043.9,4043.8,0.002]
[1758795595998,40.22847103,4043.9,4043.8,0.002]
[1758795596364,34.00047103,4043.9,4043.8,0.002]
[1758795596589,39.57390503,4043.9,4043.8,0.002]
[1758795597496,13.12856003,4043.9,4043.8,0.002]
[1758795597991,43.12856003,4043.9,4043.8,0.002]
[1758795598192,41.32519403,4043.9,4043.8,0.002]
[1758795598792,43.12856003,4043.9,4043.8,0.002]
[1758795600902,42.74057887,4043.9,4043.8,0.002]
[1758795601193,43.12857255,4043.9,4043.8,0.002]
[1758795601703,40.63699755,4043.9,4043.8,0.002]
[1758795602010,6.5935982,4043.9,4043.8,0.002]
[1758795602304,12.50037968,4043.9,4043.8,0.002]
[1758795602506,12.50037968,4043.9,4043.8,0.2361]
[1758795602669,17.77526668,4043.9,4043.8,0.2361]
[1758795602871,20.24812703,4043.9,4043.8,0.2361]
[1758795603266,19.59997103,4043.9,4043.8,0.2361]
[1758795603670,12.07504668,4043.9,4043.8,0.002]
[1758795603985,3.40739368,4043.9,4043.8,0.695]
[1758795604204,7.57039368,4043.9,4043.8,0.695]
[1758795604402,7.57139368,4043.9,4043.8,0.695]
[1758795604571,7.57139368,4043.9,4043.8,2.7090215]
[1758795604768,0.40739368,4043.9,4043.8,2.7090215]
[1758795605002,0.40739368,4043.9,4043.8,3.19265071]
[1758795605204,0.40739368,4043.9,4043.8,0.695]
[1758795605421,0.40739368,4043.9,4043.8,2.7090215]
[1758795605767,0.40739368,4043.9,4043.8,0.2361]
[1758795605970,0.40739368,4043.9,4043.8,2.7090215]
[1758795606166,4.57139368,4043.9,4043.8,3.1679215]
[1758795606394,4.57139368,4043.9,4043.8,0.695]
[1758795607274,4.57139368,4043.9,4043.8,0.2361]
[1758795607475,4.57139368,4043.9,4043.8,0.002]
[1758795607894,4.57139368,4043.9,4043.8,14.502]
[1758795608095,4.57139368,4043.9,4043.8,16.9749215]
[1758795608296,4.57139368,4043.9,4043.8,17.2090215]
[1758795608605,4.57139368,4043.9,4043.8,17.6679215]
[1758795608810,4.57039368,4043.9,4043.8,17.6679215]
[1758795610110,4.57039368,4043.9,4043.8,15.195]
[1758795610408,4.57039368,4043.9,4043.8,17.2090215]
[1758795611376,4.57039368,4043.9,4043.8,17.6679215]
[1758795611786,4.57039368,4043.9,4043.8,15.195]
[1758795611988,4.57039368,4043.9,4043.8,17.6679215]
[1758795612209,4.57039368,4043.9,4043.8,17.2090215]
[1758795613511,4.57039368,4043.9,4043.8,17.6679215]
[1758795614528,4.1804,4043.9,4043.8,17.6679215]
[1758795615604,4.1804,4043.9,4043.8,3.1679215]
[1758795616223,0.0194,4043.9,4043.8,3.1679215]
[1758795616525,0.0194,4043.9,4043.8,3.2911215]
[1758795619724,0.0194,4043.9,4043.8,7.3319215]
[1758795623027,0.0186,4043.9,4043.8,7.3319215]
[1758795625820,0.0186,4043.9,4043.8,7.3279215]
[1758795626201,0.0186,4043.9,4043.8,2.7090215]
[1758795626407,0.0186,4043.9,4043.8,6.6349215]
[1758795626927,0.0186,4043.9,4043.8,6.8786215]
[1758795627335,0.0186,4043.9,4043.8,2.4749215]
[1758795629444,0.4654,4043.9,4043.8,2.4749215]
[1758795629640,0.6977,4043.9,4043.8,2.4749215]
[1758795629840,0.0186,4043.9,4043.8,2.4749215]
[1758795632461,0.0186,4043.9,4043.8,4.0927215]
[1758795634125,0.0186,4043.9,4043.8,4.11745071]
[1758795635032,0.0186,4043.9,4043.8,4.0927215]
[1758795636735,0.0186,4043.9,4043.8,4.7728215]
[1758795638124,0.0186,4043.9,4043.8,4.3139215]
[1758795639007,0.0186,4043.9,4043.8,3.2782215]
[1758795639173,0.0186,4043.9,4043.8,7.4342215]
[1758795639704,0.0186,4043.9,4043.8,7.6779215]
[1758795640998,0.0186,4043.9,4043.8,8.9288215]
[1758795642493,0.0186,4043.9,4043.8,8.4699215]
[1758795643614,0.0186,4043.9,4043.8,8.2262215]
[1758795644543,0.0186,4043.9,4043.8,3.2782215]
[1758795644831,0.478,4043.9,4043.8,3.2782215]
[1758795645006,0.7113,4043.9,4043.8,7.4342215]
[1758795646033,0.478,4043.9,4043.8,0.8053]
[1758795646201,0.7113,4043.9,4043.8,0.002]
[1758795646407,1.11173,4043.9,4043.8,0.002]
[1758795648286,1.11093,4043.9,4043.8,0.002]
[1758795648728,0.8337,4043.9,4043.8,0.002]
[1758795649806,9.930469,4043.9,4043.8,0.002]
[1758795650421,9.514401,4043.9,4043.8,0.002]
[1758795650790,8.753301,4043.9,4043.8,0.002]
[1758795651126,4.085571,4043.9,4043.8,0.002]
[1758795652104,3.268864,4043.9,4043.8,0.002]
[1758795654146,5.74172435,4043.9,4043.8,0.002]
[1758795654346,7.22366637,4043.9,4043.8,0.002]
[1758795655112,4.75080602,4043.9,4043.8,0.002]
[1758795655319,28.10493137,4043.9,4043.8,0.002]
[1758795655552,24.31002137,4043.9,4043.8,0.002]
[1758795655718,24.00404437,4043.9,4043.8,0.002]
[1758795656357,37.78850237,4043.9,4043.8,0.002]
[1758795658855,42.7198474,4043.9,4043.8,0.002]
[1758795659572,43.10785102,4043.9,4043.8,0.002]
[1758795659742,47.26485102,4043.9,4043.8,0.002]
[1758795660177,46.8768474,4043.9,4043.8,0.002]
[1758795660380,17.6688474,4043.9,4043.8,0.002]
[1758795660844,47.6688474,4043.9,4043.8,0.002]
[1758795662067,43.5118474,4043.9,4043.8,0.002]
[1758795662257,49.7298474,4043.9,4043.8,0.002]
[1758795662960,50.11786819,4043.9,4043.8,0.002]
[1758795663158,50.62249228,4043.9,4043.8,0.002]
[1758795667288,53.23049228,4043.9,4043.8,0.002]
[1758795667582,53.32972065,4043.9,4043.8,0.002]
[1758795672556,52.94169986,4043.9,4043.8,0.002]
[1758795673581,3.26516614,4043.4,4043.3,1e-08]
[1758795673886,45.35371117,4043.4,4043.3,1e-08]
[1758795674097,46.02531117,4043.4,4043.3,1e-08]
[1758795675563,46.41337226,4043.4,4043.3,1e-08]
[1758795676361,30.36758723,4043.4,4043.3,1e-08]
[1758795676681,45.26371338,4043.4,4043.3,0.23170001]
[1758795676996,45.26371338,4043.4,4043.3,1e-08]
[1758795677185,45.93531338,4043.4,4043.3,1e-08]
[1758795677581,50.86665841,4043.4,4043.3,1e-08]
[1758795679494,50.63345841,4043.4,4043.3,1e-08]
[1758795679695,50.19505841,4043.4,4043.3,1e-08]
[1758795679997,50.63345841,4043.4,4043.3,1e-08]
[1758795680412,50.86665841,4043.4,4043.3,1e-08]
[1758795683085,48.80465841,4043.4,4043.3,1e-08]
[1758795683426,50.86665841,4043.4,4043.3,1e-08]
[1758795684903,20.86665841,4043.4,4043.3,1e-08]
[1758795685109,20.86765841,4043.4,4043.3,1e-08]
[1758795685309,50.86765841,4043.4,4043.3,1e-08]
[1758795687022,50.19605841,4043.4,4043.3,1e-08]
[1758795687383,50.63445841,4043.4,4043.3,1e-08]
[1758795687586,50.86765841,4043.4,4043.3,1e-08]
[1758795687786,50.86765841,4043.4,4042.9,0.002]
[1758795687787,3.26541083,4043.0,4042.9,0.002]
[1758795687988,10.42341083,4043.0,4042.9,0.002]
[1758795688300,41.09501083,4043.0,4042.9,0.002]
[1758795689518,36.26541083,4043.0,4042.9,0.002]
[1758795689726,35.47341083,4043.0,4042.9,0.672]
[1758795690030,9.551463,4043.0,4042.9,0.672]
[1758795690208,15.02487383,4043.0,4042.9,0.672]
[1758795690410,12.551463,4043.0,4042.9,0.672]
[1758795690719,2.062,4043.0,4042.9,0.672]
[1758795690922,0.38802891,4043.0,4042.9,0.672]
[1758795691218,2.74102891,4043.0,4042.9,3.14547201]
[1758795691391,2.74102891,4043.0,4042.9,0.672]
[1758795691789,2.74102891,4043.0,4042.9,3.14547201]
[1758795691993,2.74102891,4043.0,4042.9,0.672]
[1758795692723,2.74102891,4043.0,4042.9,3.14547201]
[1758795692929,0.38802891,4043.0,4042.9,3.14547201]
[1758795693243,2.77022891,4043.0,4042.9,3.14547201]
[1758795694228,0.1232,4043.0,4042.9,3.14547201]
[1758795694525,0.001,4043.4,4043.3,2.47322731]
[1758795694837,4.2812,4043.4,4043.3,2.47322731]
[1758795695024,4.2812,4043.4,4043.3,3.14322731]
[1758795696113,23.910385,4043.4,4043.3,0.67]
[1758795696317,21.104259,4043.4,4043.3,0.67]
[1758795697138,19.356419,4043.4,4043.3,0.67]
[1758795698198,19.356419,4043.4,4043.3,0.2317]
[1758795698894,19.356419,4043.4,4043.0,0.2317]
[1758795699099,13.344415,4043.3,4043.1,0.2317]
[1758795699298,0.1232,4043.1,4042.9,0.002]
[1758795699520,4.157,4043.0,4042.9,0.002]
[1758795699920,4.157,4043.0,4042.9,0.2337]
[1758795700118,4.157,4043.0,4042.9,3.14547201]
[1758795701218,4.157,4043.0,4042.9,0.2337]
[1758795701421,23.779093,4043.0,4042.9,0.002]
[1758795701635,22.330101,4043.0,4042.9,0.002]
[1758795701828,12.090712,4043.0,4042.9,0.2303]
[1758795702399,12.401712,4043.0,4042.9,0.2303]
[1758795702837,12.090703,4043.0,4042.9,0.2303]
[1758795703407,15.115063,4043.0,4042.9,0.2303]
[1758795704743,17.177063,4043.0,4042.9,0.2303]
[1758795704915,14.353924,4043.0,4042.9,0.2303]
[1758795705116,14.057101,4043.0,4042.9,0.2303]
[1758795706449,19.53051183,4043.0,4042.9,0.002]
[1758795706665,24.10609983,4043.0,4042.9,0.002]
[1758795707150,22.70680983,4043.0,4042.9,0.002]
[1758795707357,21.28281683,4043.0,4042.9,0.002]
[1758795707538,29.01436283,4043.0,4042.9,0.002]
[1758795707732,24.61862183,4043.0,4042.9,0.002]
[1758795708658,28.21404483,4043.0,4042.9,0.002]
[1758795708848,27.18199183,4043.0,4042.9,0.002]
[1758795709268,25.24671183,4043.0,4042.9,0.002]
[1758795709756,27.98155783,4043.0,4042.9,0.002]
[1758795710755,25.91026983,4043.0,4042.9,0.002]
[1758795710950,28.30155598,4043.0,4042.9,0.002]
[1758795711761,44.78269698,4043.0,4042.9,0.002]
[1758795712462,43.98661798,4043.0,4042.9,0.002]
[1758795712778,44.07891898,4043.0,4042.9,0.002]
[1758795712954,42.45989598,4043.0,4042.9,0.002]
[1758795713380,43.25189598,4043.0,4042.9,0.002]
[1758795713742,45.57469698,4043.0,4042.9,0.002]
[1758795716464,45.96279144,4043.0,4042.9,0.002]
[1758795720489,39.74379144,4043.0,4042.9,0.002]
[1758795720694,52.18049144,4043.0,4042.9,0.002]
[1758795720992,52.01869698,4043.0,4042.9,0.002]
[1758795723491,52.40680138,4043.0,4042.9,0.002]
[1758795724559,52.40600138,4043.0,4042.9,0.002]
[1758795725098,30.25498438,4043.0,4042.9,0.002]
[1758795725291,30.25498438,4043.0,4042.9,0.2295]
[1758795725292,30.35849438,4043.0,4042.9,0.2295]
[1758795725963,44.47100138,4043.0,4042.9,0.2295]
[1758795729706,20.75442323,4043.0,4042.9,0.2295]
[1758795729856,12.07871523,4043.0,4042.9,0.6884]
[1758795730060,42.07871523,4043.0,4042.9,0.6884]
[1758795730286,34.75404523,4043.0,4042.9,0.2295]
[1758795731098,27.63767623,4043.0,4042.9,0.2295]
[1758795731295,15.99201223,4043.0,4042.9,0.6662]
[1758795731474,18.60390783,4043.0,4042.9,0.6662]
[1758795731997,34.78254383,4043.0,4042.9,0.6662]
[1758795732159,33.99756383,4043.0,4042.9,0.6662]
[1758795733029,35.57856383,4043.0,4042.9,0.6662]
[1758795733228,35.57856383,4043.0,4042.9,0.2295]
[1758795733429,36.89204044,4043.0,4042.9,0.002]
[1758795734106,43.00488744,4043.0,4042.9,0.002]
[1758795736625,42.33718744,4043.0,4042.9,0.002]
[1758795736832,34.51972244,4043.0,4042.9,0.002]
[1758795737133,42.33718744,4043.0,4042.9,0.2358]
[1758795737619,42.33718744,4043.0,4042.9,0.002]
[1758795739796,42.33818744,4043.0,4042.9,0.002]
[1758795739996,36.12018744,4043.0,4042.9,0.002]
[1758795740218,12.33818744,4043.0,4042.9,0.002]
[1758795740421,42.33818744,4043.0,4042.9,0.002]
[1758795742234,6.12018744,4043.0,4042.9,0.002]
[1758795742421,42.33818744,4043.0,4042.9,0.002]
[1758795744434,42.77178744,4043.0,4042.9,0.002]
[1758795746233,42.33818744,4043.0,4042.9,0.002]
[1758795747336,24.47227783,4043.0,4042.9,0.002]
[1758795747632,35.54875183,4043.0,4042.9,0.6725]
[1758795748050,33.76190283,4043.0,4042.9,0.6725]
[1758795748252,3.001,4043.0,4042.9,0.6725]
[1758795748456,11.934714,4043.0,4042.9,0.6725]
[1758795748641,9.218,4043.0,4042.9,0.6725]
[1758795749043,0.001,4043.0,4042.9,0.6725]
[1758795749225,6.218,4043.0,4042.9,0.6725]
[1758795749425,9.218,4043.0,4042.9,0.6725]
[1758795749628,3.001,4043.0,4042.9,3.14597201]
[1758795749926,9.2172,4043.0,4042.9,3.14597201]
[1758795750232,9.2172,4043.0,4042.9,0.6725]
[1758795750448,9.60521669,4043.0,4042.9,0.6725]
[1758795753174,9.60521669,4043.0,4042.9,3.14597201]
[1758795753335,3.38821669,4043.0,4042.9,3.14597201]
[1758795753541,7.54321669,4043.0,4042.9,3.17070673]
[1758795753846,0.38821669,4043.0,4042.9,3.17070673]
[1758795754043,2.57021669,4043.0,4042.9,3.17070673]
[1758795754666,2.1822,4043.0,4042.9,3.14597201]
[1758795754876,0.38818781,4043.0,4042.9,3.14597201]
[1758795755168,0.0002,4043.0,4042.9,3.14597201]
[1758795756178,0.0002,4043.0,4042.9,3.17070673]
[1758795756780,0.38815607,4043.0,4042.9,3.17070673]
[1758795756994,0.0002,4043.0,4042.9,3.17070673]
[1758795758058,0.0002,4043.0,4042.9,17.67070673]
[1758795758397,0.0002,4043.0,4042.9,17.64597201]
[1758795758693,0.0002,4043.0,4042.9,18.43797201]
[1758795760698,0.0002,4043.0,4042.9,18.53714159]
[1758795762394,0.0002,4043.0,4042.9,23.47120022]
[1758795762602,0.0002,4043.0,4042.9,25.53320022]
[1758795762963,0.0002,4043.0,4042.9,28.53320022]
[1758795768413,0.0002,4043.0,4042.9,32.68520022]
[1758795771499,0.0002,4043.0,4042.9,26.47120022]
[1758795771735,0.0002,4043.0,4042.9,32.68420022]
[1758795775047,0.001,4043.8,4042.9,32.68420022]
[1758795775048,0.0178,4043.9,4042.9,32.68420022]
[1758795775217,0.0178,4043.9,4043.8,8.19898013]
[1758795775413,0.017,4043.9,4043.8,12.34998013]
[1758795775614,0.017,4043.9,4043.8,27.18652882]
[1758795775823,0.017,4043.9,4043.8,17.07207019]
[1758795776048,0.7141,4043.9,4043.8,17.07207019]
[1758795776258,0.7141,4043.9,4043.8,16.9729215]
[1758795778950,0.7141,4043.9,4043.8,14.5]
[1758795779522,1.10200068,4043.9,4043.8,14.5]
[1758795779851,1.10200068,4043.9,4043.7,2.47296158]
[1758795780019,0.6971,4043.8,4043.7,2.47296158]
[1758795780224,0.6971,4043.8,4043.7,16.97296158]
[1758795781362,0.6971,4043.8,4043.7,14.5]
[1758795781515,0.6971,4043.8,4043.7,16.97298266]
[1758795783561,0.6971,4043.8,4043.7,14.5]
[1758795783761,0.6971,4043.8,4043.5,2.47310471]
[1758795784061,0.6733,4043.7,4043.6,2.47304382]
[1758795784261,0.6733,4043.7,4043.4,16.9731123]
[1758795784473,0.6733,4043.6,4043.5,2.47309492]
[1758795785351,0.6733,4043.6,4043.5,2.49782596]
[1758795786579,0.1232,4043.7,4043.6,2.47304382]
[1758795787080,0.1232,4043.7,4043.6,2.49777425]
[1758795787264,0.5584,4043.7,4043.6,2.49777425]
[1758795787476,0.7965,4043.7,4043.6,2.49777425]
[1758795787948,0.7965,4043.7,4043.6,2.47304382]
[1758795788357,0.7965,4043.7,4043.4,2.47311164]
[1758795788545,0.1232,4043.7,4043.6,2.47304382]
[1758795789165,0.7965,4043.7,4043.6,2.47304382]
[1758795792299,0.7965,4043.7,4043.5,2.47508313]
[1758795792597,0.8002,4043.7,4043.6,2.47304382]
[1758795793296,0.8002,4043.7,4043.5,2.47509377]
[1758795793497,0.677,4043.6,4043.5,0.002]
[1758795793670,0.677,4043.6,4043.5,2.47510498]
[1758795794498,10.836645,4043.6,4043.5,0.002]
[1758795794697,6.6184945,4043.6,4043.5,0.002]
[1758795794898,5.2673355,4043.6,4043.5,0.002]
[1758795795203,0.677,4043.6,4043.5,0.002]
[1758795795402,0.677,4043.6,4043.5,2.47510498]
[1758795795611,0.677,4043.6,4043.5,2.49983602]
[1758795797109,0.1232,4043.7,4043.5,2.49978964]
[1758795797308,0.81594637,4043.6,4043.5,2.49978964]
[1758795798015,1.06494637,4043.6,4043.5,2.49978964]
[1758795798207,0.81594637,4043.6,4043.5,2.49978964]
[1758795798380,0.38794637,4043.6,4043.5,2.49978964]
[1758795799186,0.38794637,4043.6,4043.5,2.4750586]
[1758795799695,0.81594637,4043.6,4043.5,0.002]
[1758795800011,1.06494637,4043.6,4043.5,2.47510498]
[1758795800690,0.81594637,4043.6,4043.5,2.47510498]
[1758795800890,0.38714637,4043.6,4043.5,2.47510498]
[1758795801310,0.38714637,4043.6,4043.5,3.18063602]
[1758795801879,0.017,4043.9,4043.8,2.4729215]
[1758795802179,0.017,4043.9,4043.8,2.49765071]
[1758795802406,0.017,4043.9,4043.8,2.74065071]
[1758795804433,0.017,4043.9,4043.8,3.97045071]
[1758795804587,0.017,4043.9,4043.8,4.09365071]
[1758795804921,0.017,4043.9,4043.8,18.59365071]
[1758795804922,1e-08,4043.9,4043.8,18.59365071]
[1758795805105,1e-08,4043.9,4043.8,18.5689215]
[1758795805415,1e-08,4043.9,4043.8,21.5689215]
[1758795806519,1e-08,4043.9,4043.8,22.07400378]
[1758795810829,1e-08,4043.9,4043.8,21.5689215]
[1758795811036,1e-08,4043.9,4043.8,27.3401215]
[1758795811632,1e-08,4043.9,4043.8,27.7779215]
[1758795811938,1e-08,4043.9,4043.8,27.0971215]
[1758795812122,1e-08,4043.9,4043.8,27.3401215]
[1758795813407,1e-08,4043.9,4043.8,25.2791215]
[1758795814447,1e-08,4043.9,4043.8,25.4023215]
[1758795814658,1e-08,4043.9,4043.8,29.45105449]
[1758795815011,0.1,4048.0,4047.8,2.47047779]
[1758795815211,0.1,4048.0,4047.8,10.75621078]
[1758795815542,0.1,4048.0,4047.8,12.98409759]
[1758795815741,0.1,4048.0,4047.8,27.73309759]
[1758795815950,0.1,4048.0,4047.8,26.54021078]
[1758795816112,0.249,4048.5,4048.4,2.47011164]
[1758795816741,0.249,4048.5,4048.4,2.70004295]
[1758795817116,0.677,4048.5,4048.4,0.22993131]
[1758795817311,0.677,4048.5,4047.9,0.22993131]
[1758795817543,0.677,4048.5,4048.4,2.47011164]
[1758795817544,1.06445416,4048.5,4048.4,2.47011164]
[1758795817750,1.06445416,4048.5,4048.2,2.4702307]
[1758795817917,0.677,4048.4,4047.8,14.5]
[1758795818217,0.677,4048.3,4047.8,14.5]
[1758795818421,0.677,4048.2,4047.8,16.97047405]
[1758795818622,0.677,4048.1,4047.8,14.5]
[1758795818819,0.677,4048.0,4047.8,16.9704666]
[1758795819052,0.38745416,4048.5,4047.8,14.5]
[1758795819252,5.48981527,4048.9,4047.9,2.470416]
[1758795819460,5.48981527,4048.9,4047.8,14.5]
[1758795819461,0.3874858,4048.4,4047.8,14.5]
[1758795819648,0.428,4048.3,4047.8,14.5]
[1758795819833,0.3874858,4048.4,4047.8,14.5]
[1758795820030,0.677,4048.3,4048.2,2.47023368]
[1758795820229,0.677,4048.3,4048.1,2.47028512]
[1758795820437,0.677,4048.2,4048.0,2.47033782]
[1758795820665,0.677,4048.1,4047.8,14.5]
[1758795820956,0.3874858,4048.4,4048.2,2.47021231]
[1758795821256,0.3874858,4048.4,4048.0,2.47029859]
[1758795821427,0.6954,4048.3,4048.2,2.47019065]
[1758795822431,0.6954,4048.3,4047.9,2.47036074]
[1758795822631,0.3874858,4048.4,4047.8,14.5]
[1758795822831,1.0828858,4048.4,4048.0,2.47031931]
[1758795823045,0.3874858,4048.4,4048.3,2.47017266]
[1758795823346,0.02,4048.9,4048.3,2.47017266]
[1758795823544,19.366131,4048.3,4046.6,0.2376]
[1758795823726,29.43317088,4048.2,4046.9,2.47102295]
[1758795823932,17.173026,4048.1,4047.1,2.47090509]
[1758795824166,17.141731,4048.0,4047.1,16.97090509]
[1758795824363,13.579251,4047.9,4047.2,2.47078363]
[1758795824541,1.60496031,4047.9,4047.2,2.47078363]
[1758795824727,0.6954,4047.8,4047.3,2.47078281]
[1758795824923,0.8186,4047.7,4047.4,2.4707054]
[1758795825145,0.8186,4047.7,4047.1,2.47089233]
[1758795825146,0.8186,4047.7,4047.5,2.47064978]
[1758795825328,0.1232,4047.7,4047.6,2.47059986]
[1758795825828,0.8186,4047.7,4047.6,2.47059986]
[1758795826056,0.8186,4047.7,4047.5,2.4706424]
[1758795826258,1.20532924,4047.7,4047.5,2.4706424]
[1758795826458,0.6954,4047.6,4047.0,15.7892]
[1758795826769,0.6954,4047.6,4047.3,2.47075627]
[1758795826993,0.6954,4047.5,4047.3,2.47075627]
[1758795827148,0.6954,4047.5,4047.4,2.47072194]
[1758795828082,0.50992924,4047.7,4047.0,14.6232]
[1758795828260,0.50992924,4047.7,4047.5,2.47060799]
[1758795828465,0.50992924,4047.7,4047.6,2.47059986]
[1758795828770,1.20532924,4047.7,4047.6,2.47059986]
[1758795828958,0.50992924,4047.7,4047.6,2.47059986]
[1758795829146,0.38752924,4047.7,4047.6,2.73290585]
[1758795829468,0.001,4048.4,4047.6,0.6832]
[1758795829796,1e-08,4049.0,4048.9,2.46980661]
[1758795829964,1e-08,4049.0,4048.9,10.25900661]
[1758795830150,1e-08,4049.0,4048.9,27.75900661]
[1758795830349,0.02,4049.9,4048.9,27.75900661]
[1758795830350,0.02,4049.9,4049.8,3.26125774]
[1758795830552,0.02,4049.9,4049.8,9.64425774]
[1758795830860,1e-08,4050.0,4049.9,3.26119677]
[1758795831065,1e-08,4050.0,4049.9,3.94439677]
[1758795831449,1e-08,4050.0,4049.9,18.44439677]
[1758795832191,1e-08,4050.0,4049.9,18.93136199]
[1758795832547,1e-08,4050.0,4049.9,24.82539677]
[1758795832886,1e-08,4050.0,4049.9,22.08319677]
[1758795833344,1e-08,4050.0,4049.9,22.08219677]
[1758795833940,1e-08,4050.0,4049.9,21.29019677]
[1758795835971,1e-08,4050.0,4049.9,16.96919677]
[1758795836502,1e-08,4050.0,4049.9,21.28519677]
[1758795836710,0.69540001,4050.0,4049.9,21.28519677]
[1758795836871,0.69540001,4050.0,4049.9,16.96919677]
[1758795837068,0.69540001,4050.0,4049.9,21.28319677]
[1758795837806,0.69540001,4050.0,4049.9,14.5]
[1758795838010,1e-08,4050.0,4049.9,14.5]
[1758795838250,0.24800001,4050.0,4049.9,16.96919677]
[1758795838706,0.24800001,4050.0,4049.9,14.5]
[1758795838906,0.24800001,4050.0,4049.9,16.96919677]
[1758795840430,0.24800001,4050.0,4049.9,14.5]
[1758795840802,0.69540001,4050.0,4049.9,14.5]
[1758795841127,0.69540001,4050.0,4049.7,4.307]
[1758795841306,0.6954,4049.9,4049.6,0.1232]
[1758795841507,0.6954,4049.9,4049.7,4.307]
[1758795841707,0.6954,4049.9,4049.6,2.59256554]
[1758795841708,0.7088,4049.8,4049.6,17.09252372]
[1758795841894,0.4617,4049.8,4049.6,21.39852372]
[1758795842091,0.2471,4049.7,4049.6,21.39852372]
[1758795842323,0.2471,4049.7,4049.6,17.09252372]
[1758795842502,0.7088,4049.7,4049.6,14.5]
[1758795842710,0.832,4049.7,4049.6,14.5]
[1758795843112,0.832,4049.7,4049.3,6.77351494]
[1758795843300,0.832,4049.7,4049.1,2.59288142]